Cogmind - Beta 9.6 @@@ ROGUE MODE // 2020.07.25 @ 16:38:38 Player: Sysandra Result: Destroyed by G-34 Mercenary with Small Laser Performance ------------- Evolutions (0) 0 Regions Visited (2) 400 Robots Destroyed (13) 65 Value Destroyed (348) 348 Prototype IDs (0) 0 Alien Tech Used (0) 0 Bonus (0) 0 TOTAL SCORE: 813 Bonus ------- None Cogmind --------- Core Integrity 0/250 Matter 300/300 Energy 66/100 System Corruption 0% Temperature Cool (6) Movement Walking (120) Location -10/Mines Parts ------- > --- POWER (1) -------- (None) > --- PROPULSION (2) --- Improved Aluminum Leg Improved Aluminum Leg > --- UTILITY (2) ------ Small Storage Unit Visual Processing Unit > --- WEAPON (2) ------- Flail > --- INVENTORY (6) ---- Large Storage Unit Sensor Array Peak State ------------ > --- POWER ------------ Light Ion Engine > --- PROPULSION ------- Improved Aluminum Leg Improved Aluminum Leg > --- UTILITY ---------- Small Storage Unit Light Armor Plating > --- WEAPON ----------- Particle Gun Assault Rifle > --- INVENTORY -------- Improved Aluminum Leg Improved Aluminum Leg Visual Processing Unit Small Laser Light Assault Rifle Flail [Rating: 11] Favorites ----------- Power Ion Engine Engine Ion Engine Propulsion Improved Aluminum Leg Leg Improved Aluminum Leg Utility Small Storage Unit Storage Small Storage Unit Processor Visual Processing Unit Protection Light Armor Plating Weapon Assault Rifle Energy Gun Medium Laser Ballistic Gun Assault Rifle Impact Weapon Flail Build | -11 -10 -10 ------- Run | Scr Mat Min Slots Evolved . | . . . Power . | . . . Propulsion . | . . . Utility . | . . . Weapon . | . . . Parts Attached 20 | 8 5 7 Power 3 | 2 1 . Engine 3 | 2 1 . Core . | . . . Reactor . | . . . Propulsion 6 | 2 2 2 Treads . | . . . Leg 6 | 2 2 2 Wheel . | . . . Hover . | . . . Flight . | . . . Utility 3 | 1 1 1 Device . | . . . Storage 1 | 1 . . Processor 1 | . . 1 Hackware . | . . . Protection 1 | . 1 . Artifact . | . . . Weapon 8 | 3 1 4 Energy Gun 3 | 1 . 2 Energy Cannon . | . . . Ballistic Gun 4 | 2 1 1 Ballistic Cannon . | . . . Launcher . | . . . Special Weapon . | . . . Impact Weapon 1 | . . 1 Slashing Weapon . | . . . Piercing Weapon . | . . . Special Melee Weapon . | . . . Unidentified Prototypes . | . . . Parts Lost 12 | . 4 8 Power 2 | . 1 1 Propulsion 4 | . 2 2 Utility 1 | . . 1 Weapon 5 | . 1 4 Highest Loss Streak 6 | . 2 6 Average Slot Usage (%) 86 | . 85 88 Engine 12 | . 13 11 Leg 24 | . 23 27 Storage 14 | . 14 14 Protection 7 | . 5 11 Energy Gun 12 | . 11 12 Ballistic Gun 12 | . 15 7 Naked Turns . | . . . Heaviest Build 16 | 13 16 15 Greatest Support 26 | 20 26 26 Greatest Overweight (x) 4 | 1 4 . Average Overweight (x) . | . . . Largest Inventory Capacity 6 | 6 6 6 Average Capacity 5 | 4 6 6 Most Carried 6 | 4 6 6 Average Carried 4 | 2 3 5 Final Capacity 6 | 6 6 6 Final Carried 6 | 2 6 2 Class Distribution -------------------- 100% | Mutant Dominant Class ---------------- Mutant | -10/Materials Mutant | -10/Mines Resources | -11 -10 -10 ----------- Run | Scr Mat Min Matter Collected 468 | 197 203 68 Remotely . | . . . Salvage Created 505 | . 324 181 Parts 25 | . 19 6 Haulers Intercepted . | . . . Recyclers Shooed 1 | . . 1 Parts Field Recycled . | . . . Retrieved Matter . | . . . Parts Self-Destructed . | . . . Prevented . | . . . Kills | -11 -10 -10 ------- Run | Scr Mat Min Combat Hostiles Destroyed 10 | . 7 3 Guns 10 | . 7 3 Classes Destroyed 4 | . 4 . Recycler 2 | . 1 1 Watcher 1 | . 1 . Swarmer 3 | . 3 . Grunt 7 | . 4 3 Best Kill Streak 5 | . 5 2 Combat Bots Only 5 | . 5 1 Max Kills in Single Turn 1 | . 1 1 Gunslinging . | . . . Exploded . | . . . Melee . | . . . Uniques/NPCs Destroyed . | . . . Combat | -11 -10 -10 -------- Run | Scr Mat Min Damage Taken 1303 | . 530 773 Core 257 | . 84 173 Absorbed by Shields . | . . . Core Remaining (%) 100 | 100 . . Volleys Fired 58 | . 31 27 Largest 2 | . 2 2 Hottest 105 | . 70 105 Shots Fired 107 | . 61 46 Gun 107 | . 61 46 Cannon . | . . . Launcher . | . . . Special . | . . . Kinetic 50 | . 32 18 Thermal 57 | . 29 28 Explosive . | . . . Electromagnetic . | . . . Robot Hit Streak 13 | . 6 13 Robot Miss Streak 4 | . 4 3 Penetration Max . | . . . Secondary Targets 2 | . 2 . Max Gunslinging Chain 1 | . 1 . Shots Hit Robots 77 | . 38 39 Core Hits 28 | . 17 11 Critical Hits . | . . . Critical Kills . | . . . Critical Parts Destroyed . | . . . Melee Attacks 6 | . . 6 Impact 6 | . . 6 Slashing . | . . . Piercing . | . . . Sneak Attacks . | . . . Combat Hostiles . | . . . Follow-up Attacks . | . . . Damage Inflicted 898 | . 449 449 Guns 764 | . 449 315 Cannons . | . . . Explosions . | . . . Melee 134 | . . 134 Ramming . | . . . Kinetic 334 | . 236 98 Thermal 430 | . 213 217 Explosive . | . . . Electromagnetic . | . . . Impact 134 | . . 134 Slashing . | . . . Piercing . | . . . Highest Corruption . | . . . Average Corruption . | . . . Corruption Purged . | . . . Overload Shots . | . . . Overflow Damage . | . . . Projectiles . | . . . Explosions . | . . . Melee . | . . . Knockbacks 2 | . . 2 Impact 2 | . . 2 Kinetic . | . . . Secondary . | . . . Self-Inflicted Damage . | . . . Shots . | . . . Rammed . | . . . Targets Rammed . | . . . Kicked . | . . . Crushed . | . . . Highest Temperature 351 | . 351 274 Average Temperature 123 | . 142 103 Received Heat Transfer 654 | . 222 432 Effects 2 | . 2 . Interference 2 | . 2 . Siege Activations . | . . . Robots Corrupted . | . . . Combat Hostiles . | . . . Parts Fried . | . . . Impact Corruptions . | . . . Robots Melted . | . . . Combat Hostiles . | . . . Parts Melted . | . . . Heat Transferred 1114 | . 629 485 Parts Sabotaged . | . . . Parts Stolen . | . . . Parts Stripped . | . . . Power Chain Reactions . | . . . Missiles Intercepted . | . . . Alert | -11 -10 -10 ------- Run | Scr Mat Min Peak Influence 166 | . 166 129 Average Influence 86 | . 101 90 Maximum Alert Level . | . . . Low Security (%) 100 | 100 100 100 Level 1 . | . . . Level 2 . | . . . Level 3 . | . . . Level 4 . | . . . Level 5 . | . . . High Security . | . . . Max Security . | . . . Squads Dispatched . | . . . Investigation . | . . . Extermination . | . . . Reinforcement . | . . . Assault . | . . . Garrison . | . . . Intercept . | . . . Construction Impeded . | . . . Haulers Reinforced . | . . . Stealth | -11 -10 -10 --------- Run | Scr Mat Min Distress Signals 1 | . 1 . Communications Jammed . | . . . Distress Signals . | . . . Times Spotted 16 | . 9 7 Peak Tracking Total 4 | . 4 3 Tactical Retreats 1 | . . 1 Traps | -11 -10 -10 ------- Run | Scr Mat Min Traps Triggered . | . . . Indirectly . | . . . Trap Hack Attempts . | . . . Triggered . | . . . Disarmed . | . . . Reprogrammed . | . . . Reused . | . . . Traps Extracted . | . . . Installed . | . . . Triggered . | . . . Machines | -11 -10 -10 ---------- Run | Scr Mat Min Machines Disabled . | . . . Max in Single Turn . | . . . Machines Sabotaged . | . . . Garrisons Compromised . | . . . Overloaded Fab Kills . | . . . Fab Network Shutdowns . | . . . Hacking | -11 -10 -10 --------- Run | Scr Mat Min Machines Accessed 2 | . 2 . Terminals 2 | . 2 . Fabricators . | . . . Repair Stations . | . . . Recycling Units . | . . . Scanalyzers . | . . . Garrison Access . | . . . Total Hacks 6 | . 6 . Successful 5 | . 5 . Failed 1 | . 1 . Catastrophic . | . . . Database Lockouts . | . . . Manual . | . . . Terminals 6 | . 6 . Fabricators . | . . . Repair Stations . | . . . Recycling Units . | . . . Scanalyzers . | . . . Garrison Access . | . . . Terminal Hacks 5 | . 5 . Record 1 | . 1 . Emergency Access Points 1 | . 1 . Alert Level 1 | . 1 . Dispatch Records 1 | . 1 . Security Status 1 | . 1 . Fabricator Hacks . | . . . Repair Station Hacks . | . . . Recycling Unit Hacks . | . . . Scanalyzer . | . . . Garrison Access Hacks . | . . . Unauthorized Hacks . | . . . Terminals . | . . . Fabricators . | . . . Repair Stations . | . . . Recycling Units . | . . . Scanalyzers . | . . . Garrison Access . | . . . Data Cores Recovered . | . . . Used . | . . . Hacking Detections 2 | . 2 . Full Trace Events . | . . . Feedback Events . | . . . Feedback Blocked . | . . . Robot Schematics Acquired . | . . . Robots Built . | . . . Matter . | . . . Time . | . . . Total Robot Build Rating . | . . . Part Schematics Acquired . | . . . Parts Built . | . . . Matter . | . . . Time . | . . . Total Part Build Rating . | . . . Parts Repaired . | . . . Time . | . . . Parts Recycled . | . . . Recycled Matter . | . . . Retrieved Matter . | . . . Retrieved Components . | . . . Parts Scanalyzed . | . . . Part Schematics Acquired . | . . . Parts Damaged . | . . . Bothacking | -11 -10 -10 ------------ Run | Scr Mat Min Used RIF Installer . | . . . Robots Hacked . | . . . Non-combat . | . . . Combat . | . . . Robot Hacks Applied . | . . . Relay Couplers Released . | . . . Robots Rewired . | . . . Allies Hacked . | . . . Hacks Repelled . | . . . Allies | -11 -10 -10 -------- Run | Scr Mat Min Total Allies . | . . . Largest Group . | . . . Highest-Rated Group . | . . . Highest-Rated Ally . | . . . Total Orders . | . . . Ally Attacks . | . . . Total Damage . | . . . Kills . | . . . Allies Corrupted . | . . . Allies Melted . | . . . Intel | -11 -10 -10 ------- Run | Scr Mat Min Robot Analysis Total . | . . . Derelict Logs Recovered 1 | . . 1 Drone Launches . | . . . Drone Recoveries . | . . . Exploration | -11 -10 -10 ------------- Run | Scr Mat Min Turns Passed 562 | 61 319 182 Spaces Moved 272 | 42 156 74 Core 25 | 10 15 . Treads . | . . . Legs 247 | 32 141 74 Wheels . | . . . Hover . | . . . Flight . | . . . Fastest Speed 50 | 50 120 120 Average Speed 125 | 107 132 120 Slowest Speed 250 | 150 250 120 Overloaded Moves . | . . . Propulsion Burnouts . | . . . Robots Hopped . | . . . Cave-ins Triggered . | . . . Exploration Rate (%) 13 | 5 22 14 Regions Visited 2 Branch Regions 1 Pre-discovered Areas 1 | . . 1 Known Exits Taken . | . . . Unknown Exits Taken 2 | 1 1 . Scrap Searched 1 | . . 1 Spaces Dug . | . . . Terrain Destroyed . | . . . Melee . | . . . Projectile . | . . . AOE . | . . . Actions | -11 -10 -10 --------- Run | Scr Mat Min Total 380 | 57 207 116 Wait 7 | . 7 . Move 270 | 41 155 74 Hop . | . . . Pick Up 19 | 8 9 2 Fast Attach . | . . . Attach 17 | 6 5 6 Detach . | . . . Swap 3 | 2 . 1 Drop . | . . . Fire 58 | . 31 27 Melee 6 | . . 6 Ram . | . . . Kick . | . . . Crush . | . . . Escape Stasis . | . . . Rewire . | . . . Trap . | . . . Miscellaneous . | . . . Route ------- -11/Scrapyard -10/Materials -10/Mines History --------- Turn | Location | Event 7 | -11/Scrapyard | Discovered new exit (range 15) 62 | -11/Scrapyard | Entered Materials 307 | -10/Materials | Build established: Mutant 337 | -10/Materials | Discovered new exit (range 8) 381 | -10/Materials | Entered Mines 423 | -10/Mines | Learned location of Zion (-6) 428 | -10/Mines | Received a Rocket Launcher from a helpful Derelict 554 | -10/Mines | Core integrity fell below 50% 560 | -10/Mines | Core integrity fell below 20% 563 | -10/Mines | Destroyed by G-34 Mercenary with Small Laser Last Messages --------------- 00484_ K-01 Serf collects debris. 00506_ G-47 Trooper destroyed. 00515_ Acquired 4 matter. 00516_ R-06 Scavenger collects Lgt. Nuclear Core. 00519_ K-01 Serf collects debris. 00526_ R-06 Scavenger destroyed. 00527_ K-01 Serf collects debris. 00535_ Lgt. Armor Plating destroyed. 00537_ K-01 Serf collects debris. 00539_ Lgt. Ion Engine destroyed. 00540_ K-01 Serf collects debris. 00541_ Sml. Laser destroyed. 00542_ Imp. Aluminum Leg destroyed. 00544_ K-01 Serf collects debris. 00545_ G-34 Mercenary knocked back. 00546_ Lgt. Assault Rifle destroyed. 00548_ K-01 Serf collects debris. 00553_ Imp. Aluminum Leg destroyed. 00553_ G-34 Mercenary knocked back. 00558_ Acquired 30 matter. Map ----- +----------------------------------------------------+ | ?????????????????????????????????????????????????? | | ?????????????????????????????????????????????????? | | ?????????????????????????????????????????????????? | | ?????????????????????????????????????????????????? | | ?????????????????????????????????????????????????? | | ?????????????????????????????????????????????????? | | ?????????????????????????????????????????????????? | | ?????????????????????????????????????????????????? | | ?????????????????????????????????????????????????? | | ?????????????????????????????????????????????????? | | ?????????????????????????????????????????????????? | | ?????????????????????????????????????????????????? | | ?????????????????????????????????????????????????? | | ?????????????????????????????????????????????????? | | ????????????????????????????????????####?????????? | | ??????????????????????????????????? ?????????? | | ?????????????????????????????????? ??????????? | | ????????????????????????????????? """???????????? | | ??????????????????????????###### """???????????? | | ??????????????????###?????# """ "?????????? | | ?????????????????## ?????# #?????? | | ????????????????## ????#] ### """ "?????????? | | ???????????????## #####% #???????????????????? | | ??? ???????????# ! ] g #???????????????????? | | ??? ###??????# =%= g #???????????????????? | | ??? ??????# *#####@####???????????????????? | | ???? ??????## ???## [=##????????????????????? | | ???? ???????# #????# #????????????????????? | | ????? ??????# #????# %g #????????????????????? | | ?????? ??????# #????# #????????????????????? | | ?????? ?###### ###### u #????????????????????? | | ??????? ?# % ##????????????????????? | | ???????# ?# ########### #?????????????????????? | | ????# ## #?????????### #?????????????????????? | | ### #???????????? #?????????????????????? | | # #???????????? #?????????????????????? | | ## #???????????? ?????????????????????? | | ?## ##????????????##?????????????????????? | | ??## ## ##????????????????????????????????????? | | ???##??# ##?????????????????????????????????????? | | ???????# #??????????????????????????????????????? | | ???????# #??????????????????????????????????????? | | ???????# #??????????????????????????????????????? | | ???????# #??????????????????????????????????????? | | ???????# ??????????????????????????????????????? | | ???????# ??????????????????????????????????????? | | ??????? ??????????????????????????????????????? | | ??????? ??????????????????????????????????????? | | ??????? ??????????????????????????????????????? | | ??????? ??????????????????????????????????????? | +----------------------------------------------------+ Best States ------------- Heat Dissipation 25 Energy Generation 10 Energy Capacity 250 Matter Stores 300 Matter Capacity 300 Sight Range 18 Terrain Scan Density 10 Armor Coverage 150 Evasion (%) 40 Item Schematics ----------------- None Robot Schematics ------------------ None Fabricated ------------ Nothing Alien Tech Used ----------------- None Achievements -------------- None Challenges ------------ None Game ------ Seed ShieldLaserSheargun Manual? 0 Play Time 00:09:05 Cumulative 22.6 hours Start 2020.07.25 @ 16:31:24 End 2020.07.25 @ 16:38:38 Sessions 1 Manual Loads 0 Difficulty Rogue Special Mode None Game No. 83 Rogue 83 Adventurer 0 Explorer 0 Win Type - Total 0 Types 0/0/0/0/0/0/0 Lore% 9 Gallery% 24 Achievement% 18 Wizard Run 0 Options --------- ASCII 0 Keyboard 1 Movement Numpad Keybinds 0 Fullscreen 2 Font 18/SmallcapsGlow Map View 76x50 Tactical HUD 1 Map Filters NONE Filters NONE Steam 1 RUN: 25549e53-253b-4697-9628-04c8d4b402d2